bitfinex-derivatives/quotes_BTCF0:USTF0_20251215
["timestamp","ask_amount","ask_price","bid_price","bid_amount"]
[1765814341835,0.0114982,86972.0,86971.0,0.70842]
[1765814342027,0.66484,86974.0,86973.0,0.35075]
[1765814342227,0.00017254,86986.0,86973.0,0.70842]
[1765814342430,0.66501254,86986.0,86985.0,0.70842]
[1765814342631,0.43970254,86986.0,86985.0,1.4355]
[1765814343131,0.10017254,86986.0,86985.0,1.4355]
[1765814343536,0.43970254,86986.0,86985.0,1.4355]
[1765814343736,0.10117254,86986.0,86985.0,1.4355]
[1765814343936,0.09917254,86986.0,86985.0,1.4355]
[1765814344137,0.09917254,86986.0,86985.0,1.72252649]
[1765814344435,0.0114914,87023.0,86985.0,1.72252649]
[1765814344436,0.0114922,87017.0,87016.0,0.35075]
[1765814344633,0.85484,87017.0,87016.0,1.07775]
[1765814344830,0.88229661,87017.0,87016.0,1.07775]
[1765814345134,0.19,87017.0,87016.0,1.09807512]
[1765814345834,0.00017244,87025.0,87024.0,0.9253413]
[1765814346032,0.12017244,87025.0,87024.0,0.9253413]
[1765814346227,0.12017244,87025.0,87024.0,1.09851378]
[1765814346426,0.12017244,87025.0,87024.0,1.21343451]
[1765814346628,0.00017244,87025.0,87024.0,1.21343451]
[1765814346830,4e-08,87025.0,87024.0,1.21343451]
[1765814347029,0.00938361,87050.0,87049.0,0.719908]
[1765814347229,0.12609802,87050.0,87049.0,2.946788]
[1765814347429,0.09938361,87050.0,87049.0,2.946788]
[1765814348237,0.09938361,87050.0,87049.0,4.384068]
[1765814349031,0.09938361,87050.0,87049.0,4.385068]
[1765814349231,0.76422361,87050.0,87049.0,1.501]
[1765814349428,0.09938361,87050.0,87049.0,2.22776]
[1765814349731,0.09938361,87050.0,87049.0,2.22976]
[1765814350138,0.09938361,87050.0,87049.0,2.32480336]
[1765814350334,0.09938361,87050.0,87049.0,2.42480336]
[1765814350735,0.09938361,87050.0,87049.0,2.32480336]
[1765814351742,0.76422361,87050.0,87049.0,2.43948052]
[1765814351928,0.76422361,87050.0,87049.0,2.32260336]
[1765814352130,0.00938361,87050.0,87049.0,1.88592152]
[1765814352335,7e-08,87058.0,87057.0,0.7199069]
[1765814352744,7e-08,87058.0,87057.0,0.89172582]
[1765814352941,7e-08,87058.0,87057.0,1.00659243]
[1765814353242,7e-08,87058.0,87057.0,1.73311243]
[1765814353541,7e-08,87058.0,87057.0,1.83711243]
[1765814353742,7e-08,87058.0,87057.0,2.23711243]
[1765814353938,0.33953,87088.0,87087.0,0.3622329]
[1765814354144,0.19578852,87088.0,87087.0,1.0887129]
[1765814354536,0.53531852,87088.0,87087.0,0.44421958]
[1765814354736,0.19578852,87088.0,87087.0,1.11005958]
[1765814355234,0.19578852,87088.0,87087.0,1.31548958]
[1765814355430,0.02578852,87088.0,87087.0,1.60309044]
[1765814355644,0.00229628,87098.0,87097.0,0.7199016]
[1765814355837,0.10785106,87098.0,87097.0,1.4462216]
[1765814356634,0.10785106,87098.0,87087.0,0.29889958]
[1765814356635,0.33953,87088.0,87087.0,0.44421958]
[1765814356836,0.33953,87088.0,87087.0,1.17049958]
[1765814356837,0.36508478,87088.0,87087.0,1.17049958]
[1765814357046,0.02555478,87088.0,87087.0,1.34347456]
[1765814357342,0.00229628,87098.0,87097.0,0.70842]
[1765814357343,0.00629628,87098.0,87097.0,0.70842]
[1765814357644,0.75113628,87098.0,87097.0,1.43466]
[1765814357836,0.08629628,87098.0,87097.0,1.43466]
[1765814358241,0.75113628,87098.0,87097.0,1.43466]
[1765814358542,0.83113628,87098.0,87097.0,1.43466]
[1765814358848,0.17029628,87098.0,87097.0,1.43466]
[1765814359447,0.16629628,87098.0,87097.0,1.43466]
[1765814360541,0.17029628,87098.0,87097.0,1.43466]
[1765814360849,0.17029628,87098.0,87097.0,0.72604]
[1765814360850,0.83513628,87098.0,87097.0,0.72604]
[1765814361347,0.83513628,87098.0,87097.0,1.07679]
[1765814361550,0.83513628,87098.0,87097.0,0.35075]
[1765814361747,0.83513628,87098.0,87097.0,1.07679]
[1765814362244,0.83513628,87098.0,87097.0,0.72604]
[1765814362443,0.66484,87095.0,87094.0,0.70842]
[1765814362745,0.66484,87109.0,87108.0,0.35075]
[1765814362950,0.84484,87109.0,87108.0,0.3622302]
[1765814363147,0.18,87109.0,87108.0,1.4458602]
[1765814363352,0.00229522,87138.0,87108.0,1.4458602]
[1765814363353,0.0114766,87135.0,87110.0,0.0114798]
[1765814363539,0.66484,87130.0,87129.0,0.35075]
[1765814363848,0.2,87130.0,87129.0,0.70842]
[1765814364442,0.86484,87130.0,87129.0,0.70842]
[1765814364651,0.86484,87130.0,87129.0,0.7991178]
[1765814364841,0.86484,87130.0,87129.0,0.0906978]
[1765814365044,0.66484,87122.0,87121.0,0.00017223]
[1765814365252,0.84484,87122.0,87121.0,0.08513223]
[1765814365957,0.84484,87122.0,87121.0,0.00017223]
[1765814366553,0.84484,87122.0,87121.0,0.00117223]
[1765814367051,0.84484,87122.0,87121.0,0.00217223]
[1765814367266,0.84484,87122.0,87121.0,0.00117223]
[1765814367752,0.84484,87122.0,87121.0,0.00017223]
[1765814367951,0.84484,87122.0,87121.0,0.00117223]
[1765814369548,0.84484,87122.0,87121.0,0.00217223]
[1765814369753,0.84484,87122.0,87121.0,0.00117223]
[1765814370148,0.84484,87122.0,87121.0,0.00017223]
[1765814370653,0.66484,87099.0,87073.0,0.0114847]
[1765814370847,0.66484,87093.0,87092.0,0.0114822]
[1765814371048,0.66484,87093.0,87092.0,0.18368935]
[1765814371247,0.19668,87096.0,87088.0,0.60924715]
[1765814371248,0.67396,87089.0,87088.0,0.4485228]
[1765814371453,0.78396,87089.0,87088.0,0.83080582]
[1765814371659,0.78396,87089.0,87088.0,0.09364302]
[1765814371858,0.6971428,87088.0,87087.0,0.01842146]
[1765814372158,0.68292,87087.0,87080.0,0.00017223]
[1765814372345,0.0114828,87088.0,87080.0,0.00017223]
[1765814372550,0.0114828,87088.0,87060.0,0.0114865]
[1765814372551,0.0114854,87069.0,87060.0,0.0114865]
[1765814372755,0.0114858,87066.0,87060.0,0.72564]
[1765814372955,0.68292,87062.0,87061.0,0.17260117]
[1765814373159,0.88757,87061.0,87060.0,0.01875052]
[1765814373453,0.68292,87052.0,87051.0,0.0114876]
[1765814373653,0.68292,87058.0,87057.0,0.0114869]
[1765814374051,0.68292,87051.0,87050.0,0.72564]
[1765814374257,0.7844077,87051.0,87050.0,0.74456141]
[1765814374561,0.7844077,87051.0,87050.0,0.83421147]
[1765814374760,0.7844077,87051.0,87050.0,0.74456141]
[1765814375063,0.7844077,87051.0,87050.0,0.01892141]
[1765814375360,0.7844077,87051.0,87043.0,0.00017223]
[1765814375361,0.68292,87044.0,87043.0,1.50017223]
[1765814375559,0.79292,87044.0,87043.0,2.22585223]
[1765814375762,0.79292,87044.0,87043.0,1.50017223]
[1765814376152,0.79292,87044.0,87043.0,1.51906541]
[1765814376750,0.79292,87044.0,87043.0,2.24474541]
[1765814376951,0.79292,87044.0,87043.0,2.24674541]
[1765814377159,0.011487,87057.0,87043.0,2.24674541]
[1765814377356,0.03,87057.0,87044.0,0.06097032]
[1765814377556,0.0114875,87053.0,87047.0,0.0114881]
[1765814377757,0.0114879,87050.0,87047.0,0.0114881]
[1765814378060,0.0114879,87050.0,87045.0,0.0114885]
[1765814378259,0.0114857,87067.0,87044.0,0.15093589]
[1765814378260,0.3386,87049.0,87048.0,0.0114881]
[1765814378761,0.2161347,87074.0,87059.0,0.3434]
[1765814378762,0.0114865,87060.0,87059.0,0.3434]
[1765814378962,0.3686,87060.0,87059.0,1.06916]
[1765814379154,0.71292,87060.0,87059.0,0.72576]
[1765814379459,0.71292,87060.0,87051.0,0.06125835]
[1765814379460,0.6944076,87052.0,87051.0,0.72576]
[1765814379651,0.8344076,87052.0,87051.0,0.72576]
[1765814380657,0.694408,87049.0,87047.0,0.06125835]
[1765814380856,0.6944082,87047.0,87046.0,0.06125835]
[1765814381060,0.6944082,87047.0,87045.0,0.002]
[1765814381061,0.68292,87046.0,87045.0,0.0134884]
[1765814381253,0.69292,87046.0,87045.0,0.0114884]
[1765814381447,0.69292,87046.0,87045.0,0.3548884]
[1765814381862,0.6944085,87045.0,87044.0,0.09398607]
[1765814382059,0.20465,87048.0,87047.0,0.3434]
[1765814382260,0.22465,87048.0,87047.0,0.3434]
[1765814382459,0.68292,87044.0,87043.0,1.61250835]
[1765814382657,0.20473211,87061.0,87043.0,1.61250835]
[1765814382658,0.68292,87055.0,87054.0,0.0114873]
[1765814382862,0.71292,87055.0,87054.0,0.0114873]
[1765814383064,0.20473211,87061.0,87060.0,0.0114865]
[1765814383065,0.54333211,87061.0,87060.0,0.0114865]
[1765814383259,0.58333211,87061.0,87060.0,0.7372865]
[1765814383648,0.92765211,87061.0,87060.0,0.7258]
[1765814384350,0.92765211,87061.0,87060.0,0.7308]
[1765814384554,1.06765211,87061.0,87060.0,0.7308]
[1765814384754,1.06765211,87061.0,87060.0,0.005]
[1765814384956,0.6944084,87046.0,87045.0,0.08195406]
[1765814385155,0.6944084,87046.0,87027.0,0.0114909]
[1765814385156,0.6944098,87035.0,87034.0,0.10317719]
[1765814385353,0.7744098,87035.0,87034.0,0.10317719]
[1765814385557,0.76292,87035.0,87034.0,0.0114899]
[1765814385754,0.6944098,87035.0,87034.0,0.01868241]
[1765814385958,0.6944098,87035.0,87032.0,0.10317719]
[1765814385959,0.68292,87033.0,87032.0,0.10317719]
[1765814386252,0.68292,87033.0,87031.0,1.50010975]
[1765814386253,0.6944102,87032.0,87031.0,1.60328694]
[1765814386464,0.8444102,87032.0,87031.0,1.50010975]
[1765814386657,0.69292,87032.0,87031.0,1.51902067]
[1765814387057,0.69292,87032.0,87031.0,1.61083163]
[1765814387659,0.69292,87032.0,87031.0,1.61183163]
[1765814388158,0.00017234,87041.0,87040.0,0.6842792]
[1765814388359,0.00017234,87041.0,87040.0,1.4101592]
[1765814388869,0.68309234,87041.0,87040.0,0.6842792]
[1765814389071,0.00017234,87041.0,87040.0,1.51288033]
[1765814389366,0.88757,87060.0,87040.0,1.01204144]
[1765814389668,0.68292,87058.0,87057.0,0.3434]
[1765814389865,0.86292,87058.0,87057.0,1.06928]
[1765814390066,0.18,87058.0,87057.0,1.06928]
[1765814391371,0.18,87058.0,87057.0,1.07128]
[1765814392870,8.211e-05,87061.0,87060.0,0.88017]
[1765814393169,0.06008211,87061.0,87060.0,0.88017]
[1765814393371,0.06008211,87061.0,87060.0,0.67279]
[1765814393566,0.39868211,87061.0,87060.0,1.39867]
[1765814393765,0.74300211,87061.0,87060.0,1.39867]
[1765814393965,0.68292,87058.0,87057.0,0.006]
[1765814394267,0.72292,87058.0,87057.0,1.16680626]
[1765814394471,0.72292,87058.0,87057.0,1.07228]
[1765814394663,0.72292,87058.0,87057.0,1.06928]
[1765814395575,0.68292,87050.0,87048.0,0.0114881]
[1765814395770,0.68292,87050.0,87040.0,0.15876508]
[1765814395771,0.68292,87050.0,87049.0,0.72601234]
[1765814395975,0.71292,87050.0,87049.0,0.10301536]
[1765814396162,0.71292,87050.0,87049.0,0.31745234]
[1765814396568,0.8944078,87050.0,87049.0,0.09081566]
[1765814396875,0.8944078,87050.0,87046.0,0.10284302]
[1765814396876,0.6944084,87046.0,87045.0,0.46376302]
[1765814397072,0.68292,87045.0,87044.0,0.10284302]
[1765814397268,0.68292,87045.0,87041.0,0.44624302]
[1765814397269,0.3386,87042.0,87041.0,0.44624302]
[1765814397466,0.3586,87042.0,87041.0,0.3434]
[1765814397767,0.3586,87042.0,87041.0,0.67279]
[1765814397966,0.02,87042.0,87041.0,0.67279]
[1765814398673,0.002,87045.0,87044.0,0.3434]
[1765814398870,0.012,87045.0,87044.0,0.67279]
[1765814399066,0.012,87045.0,87044.0,1.39863]
[1765814399467,0.002,87045.0,87044.0,1.39863]
[1765814399862,0.77492,87045.0,87044.0,0.67279]
[1765814400067,0.77492,87045.0,87044.0,1.06924]
[1765814400491,0.001,87045.0,87044.0,1.06924]
[1765814400879,4.56e-05,87045.0,87044.0,1.06924]
[1765814401070,0.68309234,87050.0,87049.0,0.65878]
[1765814401380,0.68309234,87050.0,87049.0,0.67279]
[1765814401580,0.11017234,87050.0,87049.0,0.67279]
[1765814402377,0.11017234,87050.0,87020.0,0.268068]
[1765814402576,0.11017234,87050.0,87033.0,0.00017234]
[1765814402973,0.66528,87034.0,87033.0,0.00017234]
[1765814403172,0.70528,87034.0,87033.0,0.68293244]
[1765814403380,0.70528,87034.0,87033.0,0.00017234]
[1765814403773,0.66528,87009.0,87008.0,0.268068]
[1765814403969,0.618072,87009.0,87008.0,0.22157047]
[1765814404378,0.66528,86993.0,86992.0,0.32993]
[1765814404573,0.76528,86993.0,86992.0,0.32993]
[1765814404884,0.76538588,86993.0,86987.0,0.0114961]
[1765814405073,0.00010588,86993.0,86992.0,0.67127]
[1765814405273,0.32758588,86993.0,86992.0,0.67127]
[1765814405583,0.00010588,86993.0,86992.0,0.6827655]
[1765814405772,0.32758588,86993.0,86992.0,0.32887]
[1765814405972,0.00010588,86993.0,86992.0,0.67127]
[1765814406181,0.66528,86985.0,86984.0,0.00017234]
[1765814406473,0.66528,86985.0,86978.0,0.00229945]
[1765814406474,0.66528,86979.0,86978.0,0.00229945]
[1765814406774,0.00010588,86993.0,86978.0,0.01379675]
[1765814407085,0.66528,86986.0,86985.0,0.14429353]
[1765814407281,0.66528,86986.0,86978.0,0.00229945]
[1765814407282,0.66528,86983.0,86982.0,0.14429353]
[1765814407581,0.66528,86983.0,86978.0,0.00229945]
[1765814407582,0.66528,86979.0,86978.0,0.00229945]
[1765814407771,0.66528,86975.0,86974.0,0.00017244]
[1765814407973,0.82528,86975.0,86974.0,0.00017244]
[1765814408379,0.66528,86964.0,86960.0,0.23271468]
[1765814408580,0.71528,86964.0,86960.0,0.23271468]
[1765814409376,0.71528,86964.0,86955.0,0.00011545]
[1765814409579,0.71528,86964.0,86955.0,0.01161575]
[1765814409784,0.71528,86964.0,86955.0,0.00011545]
[1765814409983,0.71528,86964.0,86961.0,0.0114996]
[1765814410382,0.71528,86964.0,86955.0,0.00011545]
[1765814410383,0.66528,86956.0,86955.0,0.00011545]
[1765814410596,0.66528,86956.0,86925.0,0.26734176]
[1765814410597,0.3378,86944.0,86943.0,0.011502]
[1765814410888,0.66528,86951.0,86950.0,0.011501]
[1765814411187,0.68528,86951.0,86950.0,0.011501]
[1765814411371,0.6853732,86951.0,86950.0,0.011501]
[1765814411579,0.3475732,86951.0,86950.0,0.340371]
[1765814412183,0.6853732,86951.0,86950.0,0.011501]
[1765814412781,9.32e-05,86951.0,86950.0,0.682771]
[1765814412981,9.32e-05,86951.0,86950.0,0.683771]
[1765814413687,0.8653732,86951.0,86950.0,0.002]
[1765814414078,0.8653732,86951.0,86938.0,0.0023005]
[1765814414079,0.66528,86939.0,86938.0,0.0023005]
[1765814414391,0.71528,86939.0,86938.0,0.0138031]
[1765814414775,0.84528,86939.0,86938.0,0.0023005]
[1765814414980,0.66528,86931.0,86930.0,0.20564049]
[1765814415179,0.94871,86931.0,86930.0,0.20564049]
[1765814415387,0.83528,86931.0,86930.0,0.20564049]
[1765814415687,0.66528,86927.0,86926.0,0.0115042]
[1765814415886,0.73528,86927.0,86926.0,0.0115042]
[1765814416083,0.32748,86937.0,86936.0,0.0115028]
[1765814416286,0.84528,86937.0,86936.0,0.0115028]
[1765814416590,0.84528,86937.0,86936.0,0.21714329]
[1765814417286,0.66528,86921.0,86920.0,0.01158759]
[1765814417587,0.00017254,86939.0,86920.0,0.67135259]
[1765814417789,0.32748,86925.0,86924.0,0.0115044]
[1765814417982,0.34748,86925.0,86924.0,0.0115044]
[1765814418176,0.66545254,86939.0,86938.0,0.0115026]
[1765814418492,0.20017254,86939.0,86938.0,0.6827726]
[1765814418885,0.07017254,86939.0,86938.0,0.6827726]
[1765814419392,0.17000014,86939.0,86938.0,0.6827726]
[1765814419690,0.66528,86935.0,86934.0,0.0115031]
[1765814419887,0.86528,86935.0,86934.0,0.0115031]
[1765814420189,0.2,86935.0,86934.0,0.68238974]
[1765814421491,0.66528,86927.0,86926.0,0.00017254]
[1765814421682,0.18,86927.0,86926.0,0.88543674]
[1765814421988,0.18,86927.0,86926.0,1.05809707]
[1765814422884,0.50748,86927.0,86926.0,1.06209707]
[1765814423184,0.84528,86927.0,86926.0,0.18833707]
[1765814423581,0.84528,86927.0,86926.0,0.17683287]
[1765814423787,0.84528,86927.0,86926.0,0.00417254]
[1765814424002,0.84528,86927.0,86926.0,0.00917254]
[1765814424288,0.18,86927.0,86926.0,0.88293254]
[1765814424486,1.4e-07,86939.0,86927.0,0.011504]
[1765814424677,0.20000014,86939.0,86938.0,0.6827726]
[1765814426183,0.20000014,86939.0,86938.0,0.6847726]
[1765814426589,0.86528014,86939.0,86938.0,0.0135026]
[1765814426786,0.20000014,86939.0,86938.0,0.9400526]
[1765814427190,0.86528014,86939.0,86938.0,0.7400626]
[1765814427388,0.87678264,86939.0,86938.0,0.005]
[1765814427791,0.86528014,86939.0,86938.0,0.005]
[1765814428507,0.86528014,86939.0,86926.0,0.00017254]
[1765814428508,0.6767841,86927.0,86926.0,0.00017254]
[1765814428796,0.66528,86921.0,86920.0,8.259e-05]
[1765814428982,0.85537491,86921.0,86920.0,8.259e-05]
[1765814429899,0.19009491,86921.0,86920.0,0.67135259]
[1765814430294,0.34503014,86939.0,86938.0,0.0115026]
[1765814430591,0.54503014,86939.0,86938.0,0.6858026]
[1765814430799,0.20000014,86939.0,86938.0,0.6858026]
[1765814431203,0.20000014,86939.0,86926.0,0.1962]
[1765814431204,0.68917,86927.0,86926.0,0.3427042]
[1765814431384,0.18,86927.0,86926.0,1.0693042]
[1765814431703,0.18,86927.0,86926.0,1.24100926]
[1765814432789,0.52503,86927.0,86926.0,1.24100926]
[1765814432984,0.52503,86927.0,86926.0,0.51440926]
[1765814433189,0.87448,86927.0,86926.0,0.18320926]
[1765814433398,0.87448,86927.0,86926.0,0.70780926]
[1765814433600,0.18,86927.0,86926.0,1.04388926]
[1765814434094,0.88241,86927.0,86926.0,0.0125042]
[1765814434396,0.70241,86921.0,86920.0,8.259e-05]
[1765814434596,0.86241,86921.0,86920.0,8.259e-05]
[1765814435502,0.86241,86921.0,86920.0,0.01953348]
[1765814436893,0.86441,86921.0,86920.0,0.01953348]
[1765814437498,0.86441,86921.0,86881.0,0.0115101]
[1765814437499,0.35296,86905.0,86903.0,0.6424]
[1765814437698,0.52296,86905.0,86904.0,0.0115071]
[1765814437892,0.87241,86905.0,86904.0,0.17292052]
[1765814438096,0.87241,86905.0,86904.0,0.26313518]
[1765814438401,0.7139171,86904.0,86903.0,0.0193293]
[1765814438600,0.70241,86899.0,86897.0,0.0115079]
[1765814438794,0.87241,86899.0,86897.0,0.0115079]
[1765814439194,0.87241,86899.0,86898.0,0.0219671]
[1765814440095,0.87241,86899.0,86898.0,0.11194866]
[1765814440294,0.87241,86899.0,86898.0,0.09228312]
[1765814440599,0.70241,86886.0,86885.0,0.7381495]
[1765814440798,0.89241,86886.0,86885.0,0.7381495]
[1765814441403,0.89241,86886.0,86885.0,0.03097546]
[1765814441602,0.89241,86886.0,86885.0,0.01946596]
[1765814441907,0.70241,86877.0,86876.0,0.02089441]
[1765814442106,0.86241,86877.0,86876.0,0.05026954]
[1765814442400,0.86241,86877.0,86876.0,0.03964731]
[1765814443795,0.86241,86877.0,86876.0,0.02089441]
[1765814444089,0.86241,86877.0,86876.0,0.35997441]
[1765814444294,0.86241,86877.0,86876.0,0.38351957]
[1765814444501,0.86241,86877.0,86876.0,0.04843957]
[1765814444889,0.86241,86877.0,86876.0,0.38351957]
[1765814445198,0.86241,86877.0,86876.0,0.71815957]
[1765814445398,0.86241,86877.0,86876.0,0.04843957]
[1765814445995,0.86241,86877.0,86876.0,0.8122703]
[1765814446402,0.86241,86877.0,86876.0,0.1425503]
[1765814446592,0.86241,86877.0,86876.0,0.8122703]
[1765814447109,0.51296,86877.0,86876.0,0.8122703]
[1765814447605,0.0991911,86877.0,86876.0,0.8122703]
[1765814448199,0.8016011,86877.0,86876.0,0.1425503]
[1765814449902,0.0991911,86877.0,86876.0,0.8122703]
[1765814450308,0.0991911,86877.0,86876.0,0.8082703]
[1765814450499,0.4521511,86877.0,86876.0,0.8082703]
[1765814450705,0.8016011,86877.0,86876.0,0.8082703]
[1765814450904,0.8016011,86877.0,86876.0,0.1385503]
[1765814451110,0.8016011,86877.0,86876.0,0.04443957]
[1765814451305,0.8026011,86877.0,86876.0,0.04143957]
[1765814451512,0.8026011,86877.0,86876.0,0.71115957]
[1765814452109,0.1001911,86877.0,86876.0,0.71015957]
[1765814452311,0.1001911,86877.0,86876.0,0.80287088]
[1765814454006,0.0991911,86877.0,86876.0,0.80287088]
[1765814454715,0.4521511,86877.0,86876.0,0.80287088]
[1765814454905,0.0991911,86877.0,86876.0,0.80287088]
[1765814455918,0.00017254,86894.0,86876.0,0.80287088]
[1765814455919,0.70241,86891.0,86890.0,0.0115089]
[1765814456212,0.70241,86891.0,86878.0,0.20141]
[1765814456213,0.70241,86885.0,86884.0,0.7384698]
[1765814456411,0.88241,86885.0,86884.0,0.7384698]
[1765814456802,0.88241,86885.0,86884.0,1.0735498]
[1765814457003,0.18,86885.0,86884.0,1.0735498]
[1765814457800,0.53296,86885.0,86884.0,1.0735498]
[1765814458211,0.88241,86885.0,86884.0,1.0735498]
[1765814458610,0.88341,86885.0,86884.0,1.0735498]
[1765814458807,0.88441,86885.0,86884.0,1.0735498]
[1765814459212,0.88341,86885.0,86884.0,1.0735498]
[1765814459413,0.70241,86877.0,86876.0,0.13315088]
[1765814459718,0.18,86877.0,86876.0,0.97537371]
[1765814460310,0.88241,86877.0,86876.0,0.30565371]
[1765814460513,0.88241,86877.0,86876.0,0.97537371]
[1765814460814,0.88241,86877.0,86876.0,0.12164008]
[1765814461113,0.70241,86859.0,86858.0,0.72926262]
[1765814461315,0.88241,86859.0,86858.0,0.02174783]
[1765814461710,0.88241,86859.0,86858.0,0.35682783]
[1765814462016,0.88241,86859.0,86858.0,0.68644783]
[1765814462202,0.18,86859.0,86858.0,0.77873634]
[1765814462407,0.0001448,86877.0,86876.0,0.6967708]
[1765814462710,0.5430348,86877.0,86876.0,0.6967708]
[1765814462909,0.68521,86900.0,86899.0,0.3671478]
[1765814463214,0.56604104,86900.0,86899.0,0.6967678]
[1765814463402,0.34289,86893.0,86892.0,0.20816]
[1765814463602,0.90836104,86893.0,86892.0,0.72696]
[1765814464018,0.87532581,86893.0,86892.0,0.72696]
[1765814464220,0.9075454,86893.0,86892.0,0.72696]
[1765814464407,0.87532581,86893.0,86892.0,0.72696]
[1765814465018,0.90754075,86893.0,86892.0,0.72696]
[1765814465416,0.68521,86892.0,86891.0,0.00017265]
[1765814465715,0.68521,86876.0,86875.0,0.0115109]
[1765814465924,0.68521,86870.0,86869.0,0.0115118]
[1765814466104,0.87521,86870.0,86869.0,0.0115118]
[1765814466816,0.87521,86870.0,86862.0,0.10509532]
[1765814466817,0.68521,86863.0,86862.0,0.10509532]
[1765814467006,0.87521,86863.0,86862.0,0.0115127]
[1765814467211,0.00017265,86878.0,86862.0,0.0115127]
[1765814467212,0.68521,86876.0,86875.0,0.0115109]
[1765814467413,0.85521,86876.0,86875.0,0.0115109]
[1765814468315,0.68521,86867.0,86860.0,0.15895665]
[1765814468520,0.86521,86867.0,86860.0,0.24967761]
[1765814468918,0.86521,86867.0,86866.0,0.0115122]
[1765814469116,0.876722,86867.0,86863.0,0.0115125]
[1765814469317,0.34289,86864.0,86863.0,0.3671525]
[1765814469515,0.34289,86861.0,86860.0,0.10324358]
[1765814469717,0.52289,86861.0,86860.0,0.78850358]
[1765814469913,0.18,86861.0,86860.0,0.78850358]
[1765814470220,0.86521,86861.0,86860.0,0.10424358]
[1765814470424,0.86521,86861.0,86860.0,0.09273068]
[1765814470921,0.87521,86861.0,86860.0,0.09273068]
[1765814471222,0.8753177,86861.0,86860.0,0.77799068]
[1765814471413,0.5329977,86861.0,86860.0,0.77799068]
[1765814472015,0.1901077,86861.0,86860.0,0.77799068]
[1765814472811,0.5329977,86861.0,86860.0,0.77799068]
[1765814473415,0.8753177,86861.0,86860.0,0.77799068]
[1765814473724,0.8753177,86861.0,86860.0,0.09273068]
[1765814475320,0.8868305,86861.0,86860.0,0.09273068]
[1765814475527,0.8868305,86861.0,86860.0,0.001]
[1765814476235,0.8753177,86861.0,86860.0,0.001]
[1765814477313,0.68521,86859.0,86858.0,0.01332812]
[1765814477519,0.68521,86857.0,86856.0,0.0115134]
[1765814477726,0.87521,86857.0,86856.0,0.0115134]
[1765814477926,0.87521,86857.0,86856.0,0.03076324]
[1765814478127,0.87521,86857.0,86856.0,0.01763219]
[1765814478325,0.87521,86857.0,86855.0,0.0115135]
[1765814478517,0.8804,86856.0,86855.0,0.0115135]
[1765814478719,1.0504,86856.0,86855.0,0.0115135]
[1765814478921,0.3767035,86856.0,86855.0,0.01936896]
[1765814479122,0.6967239,86853.0,86852.0,0.011514]
[1765814479322,0.8667239,86853.0,86852.0,0.01970934]
[1765814479627,0.68521,86836.0,86835.0,0.7385162]
[1765814479825,0.87521,86836.0,86835.0,0.7385162]
[1765814480029,0.87521,86836.0,86835.0,0.76751079]
[1765814480219,0.87521,86836.0,86835.0,1.12315079]
[1765814480621,0.8867261,86836.0,86835.0,0.11334972]
[1765814480931,0.68521,86834.0,86833.0,0.0115165]
[1765814481230,0.87521,86834.0,86833.0,0.0115165]
[1765814481415,0.87521,86834.0,86833.0,0.03056239]
[1765814481731,0.87521,86834.0,86833.0,0.0115165]
[1765814482022,0.87521,86834.0,86833.0,0.03099997]
[1765814482225,0.68521,86832.0,86831.0,0.44799703]
[1765814482427,0.2,86832.0,86831.0,0.69687187]
[1765814482616,0.2,86832.0,86831.0,0.80717301]
[1765814483735,0.88521,86832.0,86831.0,0.81317301]
[1765814483932,0.88521,86832.0,86831.0,0.81817301]
[1765814484632,0.88521,86832.0,86831.0,0.13291301]
[1765814484824,0.88521,86832.0,86831.0,0.12139621]
[1765814486733,0.88521,86832.0,86831.0,0.03010155]
[1765814486927,0.54303286,86832.0,86831.0,0.71536155]
[1765814487233,0.18014286,86832.0,86831.0,0.80937366]
[1765814487438,0.1785353,86832.0,86831.0,0.80937366]
[1765814487728,0.00017265,86844.0,86843.0,0.68526]
[1765814487932,0.19017265,86844.0,86843.0,0.6967752]
[1765814488135,0.16664325,86844.0,86843.0,0.6967752]
[1765814488331,0.16664325,86844.0,86839.0,0.72712]
[1765814488332,0.68521,86875.0,86874.0,0.011511]
[1765814488540,0.68521,86875.0,86856.0,0.20816]
[1765814488541,0.68521,86871.0,86867.0,0.011512]
[1765814488728,0.68521,86851.0,86850.0,0.85583293]
[1765814488928,0.84521,86851.0,86850.0,0.79009346]
[1765814489121,0.8567242,86851.0,86850.0,0.09331926]
[1765814489326,0.68521,86843.0,86842.0,0.00017275]
[1765814489628,0.85531577,86843.0,86842.0,0.00017275]
[1765814490129,0.85531577,86843.0,86842.0,0.69014275]
[1765814490725,0.85631577,86843.0,86842.0,0.69014275]
[1765814490924,0.85731577,86843.0,86842.0,0.69014275]
[1765814491132,0.51499577,86843.0,86842.0,0.69014275]
[1765814491635,0.86570577,86843.0,86842.0,0.09315992]
[1765814492533,0.86670577,86843.0,86842.0,0.09315992]
[1765814492934,0.86670577,86843.0,86831.0,0.01910155]
[1765814492935,0.68578,86832.0,86831.0,0.16352503]
[1765814493134,0.86578,86832.0,86831.0,0.16352503]
[1765814493322,0.86578,86832.0,86831.0,0.01910155]
[1765814494239,0.86578,86832.0,86831.0,0.02010155]
[1765814495029,0.68578,86827.0,86826.0,0.14442348]
[1765814495232,0.86578,86827.0,86826.0,0.1640609]
[1765814495544,0.86578,86827.0,86826.0,0.01963742]
[1765814495836,0.6972975,86826.0,86825.0,0.14442348]
[1765814496040,0.8772975,86826.0,86824.0,0.14442348]
[1765814496242,0.68578,86825.0,86824.0,0.14442348]
[1765814496431,0.87578,86825.0,86824.0,0.14442348]
[1765814496630,0.87578,86825.0,86824.0,0.16396127]
[1765814496928,0.87578,86825.0,86824.0,0.01953779]
[1765814497129,0.6972977,86824.0,86823.0,0.14442348]
[1765814497335,0.8872977,86824.0,86823.0,0.14442348]
[1765814497629,0.6972984,86819.0,86818.0,3.68e-06]
[1765814497828,0.6972999,86808.0,86807.0,0.20631926]
[1765814498033,0.84578,86808.0,86807.0,0.56186926]
[1765814498338,0.48683,86808.0,86807.0,1.00051769]
[1765814498534,0.84578,86808.0,86807.0,0.79419843]
[1765814498839,0.84578,86808.0,86807.0,0.46972843]
[1765814499240,0.84578,86808.0,86807.0,0.12569843]
[1765814499539,0.16,86808.0,86807.0,0.79419843]
[1765814500130,0.1143921,86808.0,86807.0,0.79719843]
[1765814500328,2.1e-06,86808.0,86807.0,0.91239584]
[1765814500536,0.00017275,86816.0,86815.0,0.6800189]